fUSD/lending_fUSD_20250223
["ID","MTS","AMOUNT","RATE_DAILY","PERIOD"]
[354182863,1740333053435,-500.0,0.0001652,2]
[354182864,1740333053444,-500.0,0.0001652,2]
[354182865,1740333053454,-500.0,0.0001652,2]
[354182866,1740333053463,-500.0,0.0001652,2]
[354182867,1740333053472,-500.0,0.0001652,2]
[354182868,1740333053481,-500.0,0.0001652,2]
[354182869,1740333053491,-500.0,0.0001652,2]
[354182870,1740333053502,-500.0,0.0001652,2]
[354182871,1740333053510,-500.0,0.0001652,2]
[354182872,1740333053520,-500.0,0.0001652,2]
[354182873,1740333053530,-500.0,0.0001652,2]
[354182874,1740333053539,-500.0,0.0001652,2]
[354182875,1740333053548,-500.0,0.0001652,2]
[354182876,1740333053557,-500.0,0.0001652,2]
[354182877,1740333053566,-500.0,0.0001652,2]
[354182878,1740333053576,-500.0,0.0001652,2]
[354182879,1740333053585,-500.0,0.0001652,2]
[354182880,1740333053595,-500.0,0.0001652,2]
[354182881,1740333053604,-500.0,0.0001652,2]
[354182882,1740333053613,-500.0,0.0001652,2]
[354182883,1740333053622,-500.0,0.0001652,2]
[354182884,1740333053631,-500.0,0.0001652,2]
[354182885,1740333053640,-500.0,0.0001652,2]
[354182886,1740333053651,-500.0,0.0001652,2]
[354182887,1740333053660,-500.0,0.0001652,2]
[354182888,1740333053669,-500.0,0.0001652,2]
[354182889,1740333053678,-500.0,0.0001652,2]
[354182890,1740333053687,-1000.0,0.0001652,2]
[354182891,1740333053696,-500.0,0.0001652,2]
[354182892,1740333053705,-500.0,0.0001652,2]
[354182893,1740333053714,-500.0,0.0001652,2]
[354182894,1740333053724,-500.0,0.0001652,2]
[354182895,1740333053736,-500.0,0.0001652,2]
[354182896,1740333053746,-500.0,0.0001652,2]
[354182897,1740333053756,-500.0,0.0001652,2]
[354182898,1740333053765,-526.42813578,0.0001652,2]
[354182899,1740333053774,-500.0,0.0001652,2]
[354182900,1740333053928,-500.0,0.0001652,2]
[354182901,1740333053938,-500.0,0.0001652,2]
[354182902,1740333053948,-500.0,0.0001652,2]
[354182903,1740333053958,-500.0,0.0001652,2]
[354182904,1740333053967,-500.0,0.0001652,2]
[354182905,1740333053975,-500.0,0.0001652,2]
[354182906,1740333053985,-500.0,0.0001652,2]
[354182907,1740333053995,-500.0,0.0001652,2]
[354182908,1740333054005,-515.55838896,0.0001652,2]
[354182909,1740333054014,-500.0,0.0001652,2]
[354182910,1740333054023,-500.0,0.0001652,2]
[354182911,1740333054033,-500.0,0.0001652,2]
[354182912,1740333054042,-500.0,0.0001652,2]
[354182913,1740333054051,-500.0,0.0001652,2]
[354182914,1740333054060,-500.0,0.0001652,2]
[354182915,1740333054069,-500.0,0.0001652,2]
[354182916,1740333054078,-500.0,0.0001652,2]
[354182917,1740333054087,-500.0,0.0001652,2]
[354182918,1740333054095,-500.0,0.0001652,2]
[354182919,1740333054104,-500.0,0.0001652,2]
[354182920,1740333054113,-500.0,0.0001652,2]
[354182921,1740333054123,-500.0,0.0001652,30]
[354182922,1740333054132,-500.0,0.0001652,2]
[354182923,1740333054141,-500.0,0.0001652,2]
[354182924,1740333054151,-500.0,0.0001652,2]
[354182925,1740333054160,-500.0,0.0001652,2]
[354182926,1740333054169,-500.0,0.0001652,2]
[354182927,1740333054178,-500.0,0.0001652,2]
[354182928,1740333054187,-500.0,0.0001652,2]
[354182929,1740333054196,-500.0,0.0001652,2]
[354182930,1740333054205,-500.0,0.0001652,2]
[354182931,1740333054214,-500.0,0.0001652,2]
[354182932,1740333054223,-500.0,0.0001652,2]
[354182933,1740333054232,-500.0,0.0001652,2]
[354182934,1740333054242,-500.0,0.0001652,2]
[354182935,1740333054251,-500.0,0.0001652,2]
[354182936,1740333054260,-500.0,0.0001652,2]
[354182937,1740333054268,-500.0,0.0001652,2]
[354182938,1740333054277,-500.0,0.0001652,2]
[354182939,1740333054286,-500.0,0.0001652,2]
[354182940,1740333054295,-500.0,0.0001652,2]
[354182941,1740333054304,-500.0,0.0001652,2]
[354182942,1740333054313,-500.0,0.0001652,2]
[354182943,1740333054322,-500.0,0.0001652,2]
[354182944,1740333054331,-500.0,0.0001652,2]
[354182945,1740333054340,-500.0,0.0001652,2]
[354182946,1740333054350,-540.82137407,0.0001652,2]
[354182947,1740333054358,-500.0,0.0001652,2]
[354182948,1740333054368,-500.0,0.0001652,2]
[354182949,1740333054377,-500.0,0.0001652,2]
[354182950,1740333054386,-500.0,0.0001652,2]
[354182951,1740333054396,-500.0,0.0001652,2]
[354182952,1740333054405,-500.0,0.0001652,2]
[354182953,1740333054415,-500.0,0.0001652,2]
[354182954,1740333054425,-500.0,0.0001652,2]
[354182955,1740333054434,-500.0,0.0001652,2]
[354182956,1740333054443,-500.0,0.0001652,2]
[354182957,1740333054453,-500.0,0.0001652,2]
[354182958,1740333054463,-500.0,0.0001652,2]
[354182959,1740333054472,-515.52382689,0.0001652,2]
[354182960,1740333054481,-500.0,0.0001652,2]
[354182961,1740333054490,-500.0,0.0001652,2]
[354182962,1740333054500,-500.0,0.0001652,2]
[354182963,1740333054509,-500.0,0.0001652,2]
[354182964,1740333054518,-500.0,0.0001652,2]
[354182965,1740333054527,-500.0,0.0001652,2]
[354182966,1740333054536,-500.0,0.0001652,2]
[354182967,1740333054545,-500.0,0.0001652,2]
[354182968,1740333054554,-500.0,0.0001652,2]
[354182969,1740333054564,-500.0,0.0001652,2]
[354182970,1740333054573,-500.0,0.0001652,2]
[354182971,1740333054582,-500.0,0.0001652,2]
[354182972,1740333054591,-500.0,0.0001652,2]
[354182973,1740333054600,-500.0,0.0001652,2]
[354182974,1740333054609,-500.0,0.0001652,2]
[354182975,1740333054618,-500.0,0.0001652,2]
[354182976,1740333054627,-500.0,0.0001652,2]
[354182977,1740333054637,-500.0,0.0001652,2]
[354182978,1740333054648,-500.0,0.0001652,2]
[354182979,1740333054662,-500.0,0.0001652,2]
[354182980,1740333054672,-500.0,0.0001652,2]
[354182981,1740333054681,-500.0,0.0001652,2]
[354182982,1740333054690,-500.0,0.0001652,2]
[354182983,1740333054699,-500.0,0.0001652,2]
[354182984,1740333054708,-500.0,0.0001652,2]
[354182985,1740333054717,-636.56,0.0001652,2]
[354182986,1740333054727,-500.0,0.0001652,2]
[354182987,1740333054736,-500.0,0.0001652,2]
[354182988,1740333054745,-500.0,0.0001652,2]
[354182989,1740333054754,-500.0,0.0001652,2]
[354182990,1740333054764,-500.0,0.0001652,2]
[354182991,1740333054773,-500.0,0.0001652,2]
[354182992,1740333054782,-500.0,0.0001652,2]
[354182993,1740333054791,-562.83,0.0001652,2]
[354182994,1740333054801,-500.0,0.0001652,2]
[354182995,1740333054810,-500.0,0.0001652,2]
[354182996,1740333054819,-500.0,0.0001652,2]
[354182997,1740333054828,-502.89410783,0.0001652,2]
[354182998,1740333054837,-500.0,0.0001652,2]
[354182999,1740333054846,-547.7799147,0.0001652,2]
[354183000,1740333054855,-500.0,0.0001652,2]
[354183001,1740333054863,-500.0,0.0001652,2]
[354183002,1740333054872,-500.0,0.0001652,2]
[354183003,1740333054881,-500.0,0.0001652,2]
[354183004,1740333054889,-500.0,0.0001652,2]
[354183005,1740333054898,-500.0,0.0001652,2]
[354183006,1740333054907,-500.0,0.0001652,2]
[354183007,1740333054916,-500.0,0.0001652,2]
[354183008,1740333054925,-500.0,0.0001652,2]
[354183009,1740333054934,-500.0,0.0001652,2]
[354183010,1740333054943,-500.0,0.0001652,2]
[354183011,1740333054952,-500.0,0.0001652,2]
[354183012,1740333054961,-500.0,0.0001652,2]
[354183013,1740333054970,-500.0,0.0001652,2]
[354183014,1740333054979,-500.0,0.0001652,2]
[354183015,1740333054988,-273.90881028,0.0001652,2]
[354183016,1740333054997,-500.0,0.0001652,2]
[354183017,1740333055006,-500.0,0.0001652,2]
[354183018,1740333055014,-500.0,0.0001652,2]
[354183019,1740333055023,-500.0,0.0001652,2]
[354183020,1740333055032,-500.0,0.0001652,2]
[354183021,1740333055041,-500.0,0.0001652,2]
[354183022,1740333055050,-509.19103406,0.0001652,2]
[354183023,1740333055059,-500.0,0.0001652,2]
[354183024,1740333055067,-500.0,0.0001652,2]
[354183025,1740333055077,-500.0,0.0001652,2]
[354183026,1740333055086,-500.0,0.0001652,2]
[354183027,1740333055094,-500.0,0.0001652,2]
[354183028,1740333055103,-500.0,0.0001652,2]
[354183029,1740333055113,-500.0,0.0001652,2]
[354183030,1740333055123,-500.0,0.0001652,2]
[354183031,1740333055132,-500.0,0.0001652,2]
[354183032,1740333055141,-500.0,0.0001652,2]
[354183033,1740333055150,-500.0,0.0001652,2]
[354183034,1740333055159,-500.0,0.0001652,2]
[354183035,1740333055168,-500.0,0.0001652,2]
[354183036,1740333055176,-500.0,0.0001652,2]
[354183037,1740333055186,-500.0,0.0001652,2]
[354183038,1740333055195,-500.0,0.0001652,2]
[354183039,1740333055205,-500.0,0.0001652,2]
[354183040,1740333055214,-500.0,0.0001652,2]
[354183041,1740333055223,-500.0,0.0001652,2]
[354183042,1740333055232,-500.0,0.0001652,2]
[354183043,1740333055241,-500.0,0.0001652,2]
[354183044,1740333055249,-500.0,0.0001652,2]
[354183045,1740333055258,-500.0,0.0001652,2]
[354183046,1740333055267,-500.0,0.0001652,2]
[354183047,1740333055276,-500.0,0.0001652,2]
[354183048,1740333055286,-500.0,0.0001652,2]
[354183049,1740333055295,-500.0,0.0001652,2]
[354183050,1740333055304,-500.0,0.0001652,2]
[354183051,1740333055313,-500.0,0.0001652,2]
[354183052,1740333055322,-500.0,0.0001652,2]
[354183053,1740333055331,-500.0,0.0001652,2]
[354183054,1740333055339,-500.0,0.0001652,2]
[354183055,1740333055349,-500.0,0.0001652,2]
[354183056,1740333055359,-500.0,0.0001652,2]
[354183057,1740333055368,-500.0,0.0001652,2]
[354183058,1740333055377,-500.0,0.0001652,2]
[354183059,1740333055387,-500.0,0.0001652,2]
[354183060,1740333055395,-500.0,0.0001652,2]
[354183061,1740333055404,-500.0,0.0001652,2]
[354183062,1740333055414,-461.20389382,0.0001652,2]
[354183063,1740333055423,-500.0,0.0001652,2]
[354183064,1740333055432,-500.0,0.0001652,2]
[354183065,1740333055442,-500.0,0.0001652,2]
[354183066,1740333055451,-500.0,0.0001652,2]
[354183067,1740333055460,-500.0,0.0001652,2]
[354183068,1740333055469,-500.0,0.0001652,2]
[354183069,1740333055478,-500.0,0.0001652,2]
[354183070,1740333055488,-500.0,0.0001652,2]
[354183071,1740333055497,-500.0,0.0001652,2]
[354183072,1740333055506,-500.0,0.0001652,2]
[354183073,1740333055516,-500.0,0.0001652,2]
[354183074,1740333055526,-500.0,0.0001652,2]
[354183075,1740333055535,-500.0,0.0001652,2]
[354183076,1740333055544,-500.0,0.0001652,2]
[354183077,1740333055553,-430.64625431,0.0001652,2]
[354183078,1740333055562,-500.0,0.0001652,2]
[354183079,1740333055572,-500.0,0.0001652,2]
[354183080,1740333055581,-500.0,0.0001652,2]
[354183081,1740333055593,-487.77460744,0.0001652,2]
[354183082,1740333055602,-500.0,0.0001652,2]
[354183083,1740333055612,-500.0,0.0001652,2]
[354183084,1740333055621,-500.0,0.0001652,2]
[354183085,1740333055629,-500.0,0.0001652,2]
[354183086,1740333055638,-500.0,0.0001652,2]
[354183087,1740333055653,-500.0,0.0001652,2]
[354183088,1740333055662,-500.0,0.0001652,2]
[354183089,1740333055671,-500.0,0.0001652,2]
[354183090,1740333055680,-500.0,0.0001652,2]
[354183091,1740333055689,-500.0,0.0001652,2]
[354183092,1740333055699,-620.21887018,0.0001652,2]
[354183093,1740333055707,-500.0,0.0001652,2]
[354183094,1740333055716,-500.0,0.0001652,2]
[354183095,1740333055726,-500.0,0.0001652,2]
[354183096,1740333055735,-500.0,0.0001652,2]
[354183097,1740333055744,-500.0,0.0001652,2]
[354183098,1740333055754,-500.0,0.0001652,2]
[354183099,1740333055763,-500.0,0.0001652,2]
[354183100,1740333055772,-500.0,0.0001652,2]
[354183101,1740333055781,-506.81967569,0.0001652,2]
[354183102,1740333055790,-500.0,0.0001652,2]
[354183103,1740333055799,-500.0,0.0001652,2]
[354183104,1740333055808,-500.0,0.0001652,2]
[354183105,1740333055817,-500.0,0.0001652,2]
[354183106,1740333055826,-500.0,0.0001652,2]
[354183107,1740333055836,-500.0,0.0001652,2]
[354183108,1740333055845,-500.0,0.0001652,2]
[354183109,1740333055854,-385.09852718,0.0001652,2]
[354183110,1740333055863,-500.0,0.0001652,2]
[354183111,1740333055873,-500.0,0.0001652,2]
[354183112,1740333055882,-500.0,0.0001652,2]
[354183113,1740333055892,-500.0,0.0001652,2]
[354183114,1740333055901,-504.39804698,0.0001652,2]
[354183115,1740333055910,-500.0,0.0001652,2]
[354183116,1740333055919,-500.0,0.0001652,2]
[354183117,1740333055927,-500.0,0.0001652,2]
[354183118,1740333055936,-500.0,0.0001652,2]
[354183119,1740333055945,-500.0,0.0001652,2]
[354183120,1740333055954,-500.0,0.0001652,2]
[354183121,1740333055963,-500.0,0.0001652,2]
[354183122,1740333055972,-500.0,0.0001652,2]
[354183123,1740333055982,-500.0,0.0001652,2]
[354183124,1740333055991,-500.0,0.0001652,2]
[354183125,1740333056000,-500.0,0.0001652,2]
[354183126,1740333056009,-500.0,0.0001652,2]
[354183127,1740333056019,-500.0,0.0001652,2]
[354183128,1740333056028,-266.58869751,0.0001652,2]
[354183134,1740333395520,202.35,8.767e-05,2]
[354183150,1740334232479,-550.0,0.0001,2]
[354183151,1740334232488,-151.213483,0.00010958,2]
[354183152,1740334232497,-160.059687,0.00010958,2]
[354183153,1740334232507,-164.947541,0.00010958,2]
[354183154,1740334232516,-163.766217,0.00010958,2]
[354183155,1740334232525,-643.753072,0.00010958,2]
[354183156,1740334232536,-607.31865477,0.00010958,2]
[354183159,1740334238171,-220.02183882,0.00010958,2]
[354183160,1740334238180,-151.213483,0.00011123,2]
[354183161,1740334238190,-163.766217,0.00011123,2]
[354183162,1740334238200,-151.213483,0.00011287,2]
[354183163,1740334238209,-151.213483,0.00011369,2]
[354183164,1740334238218,-163.766217,0.00011369,2]
[354183165,1740334238228,-600.0,0.00012,2]
[354183166,1740334238237,-846.81,0.00012957,2]
[354183167,1740334238246,-4271.0,0.000135,5]
[354183168,1740334238255,-198.86,0.00013699,2]
[354183169,1740334238264,-650.0,0.00014,2]
[354183170,1740334238274,-755.06,0.00014711,2]
[354183171,1740334238283,-164.38,0.00014738,2]
[354183172,1740334238292,-1620.93,0.00014767,2]
[354183173,1740334238302,-157.68,0.00014779,2]
[354183174,1740334238311,-1158.85,0.0001482,2]
[354183175,1740334238321,-500.0,0.00014903,2]
[354183176,1740334238330,-1346.80389967,0.0001495,2]
[354183177,1740334238341,-9200.62610033,0.0001495,2]
[354183178,1740334238351,-587.79,0.00014966,2]
[354183179,1740334238360,-150.0,0.00014992,2]
[354183180,1740334238369,-150.0,0.00014992,2]
[354183181,1740334238379,-150.0,0.00014992,2]
[354183183,1740334238389,-150.0,0.00014992,2]
[354183185,1740334238399,-341.36,0.00015022,2]
[354183187,1740334238408,-250.0,0.0001507,2]
[354183189,1740334238417,-1238.26,0.00015108,2]
[354183190,1740334238426,-150.0,0.00015177,2]
[354183191,1740334238435,-500.0,0.0001521,2]
[354183192,1740334238444,-846.81,0.00015221,2]
[354183193,1740334238454,-150.0,0.0001523,2]
[354183194,1740334238463,-1000.0,0.00015254,2]
[354183195,1740334238472,-150.0,0.00015311,2]
[354183196,1740334238481,-150.0,0.00015362,2]
[354183197,1740334238491,-150.0,0.00015468,2]
[354183199,1740334238500,-202.35,0.00015516,2]
[354183200,1740334238511,-157.68,0.00015517,2]
[354183201,1740334238520,-4000.0,0.00015518,2]
[354183202,1740334238530,-150.0,0.00015519,2]
[354183203,1740334238539,-150.0,0.00015526,2]
[354183205,1740334238549,-150.0,0.00015526,2]
[354183207,1740334238558,-150.0,0.00015547,2]
[354183208,1740334238566,-150.0,0.00015566,2]
[354183210,1740334238575,-200.0,0.00015571,2]
[354183212,1740334238584,-150.0,0.00015589,2]
[354183213,1740334238593,-150.0,0.00015706,2]
[354183215,1740334238602,-150.0,0.00015732,2]
[354183216,1740334238611,-150.0,0.00015825,2]
[354183218,1740334238620,-150.0,0.0001583,2]
[354183220,1740334238629,-150.0,0.00015874,2]
[354183221,1740334238638,-300.0,0.000159,5]
[354183223,1740334238647,-150.0,0.00015917,2]
[354183225,1740334238658,-159.872087,0.0001593,15]
[354183227,1740334238667,-150.0,0.00015944,2]
[354183229,1740334238678,-150.0,0.00015966,2]
[354183230,1740334238687,-150.0,0.00016033,2]
[354183232,1740334238696,-150.0,0.00016064,2]
[354183233,1740334238705,-150.0,0.00016102,2]
[354183234,1740334238714,-1000.0,0.0001611,2]
[354183235,1740334238723,-824.63898756,0.00016116,2]
[354183236,1740334238735,-11453.35148646,0.00016116,2]
[354183237,1740334238747,-2822.30000001,0.00016116,2]
[354183238,1740334238770,-4520.70858314,0.00016116,2]
[354183239,1740334238787,-400.59006733,0.00016116,2]
[354183240,1740334240252,-1352.59422969,0.00016116,2]
[354183241,1740334240413,-4790.7,0.00016116,2]
[354184298,1740334406368,176.82,8.767e-05,2]
[354184300,1740334624262,-163.766217,0.00010958,2]
[354184301,1740334624301,-151.213483,0.00010958,2]
[354184302,1740334624331,-221.243394,0.00010958,2]
[354184303,1740334624365,-164.108038,0.00010958,2]
[354184304,1740334624396,-163.766217,0.00011205,2]
[354184305,1740334624425,-151.213483,0.00011205,2]
[354184306,1740334624464,-151.213483,0.00011369,2]
[354184307,1740334624498,-2002.85170733,0.00012648,2]
[354184308,1740334624532,-194.04,0.0001461,2]
[354184309,1740334624565,-3896.58397767,0.00014703,2]
[354184310,1740335136328,11070.05107957,8e-05,2]
[354184311,1740335154465,4193.5770298,6.94e-05,2]
[354184312,1740335216242,500.0,0.00016438,60]
[354184324,1740335431416,-150.0,9.998e-05,2]
[354184325,1740335431427,-500.0,9.999e-05,2]
[354184326,1740335431436,-500.0,9.999e-05,2]
[354184327,1740335431446,-6.7765801,9.999e-05,2]
[354184328,1740335431458,-493.2234199,9.999e-05,2]
[354184329,1740335431468,-500.0,9.999e-05,2]
[354184330,1740335431478,-500.0,9.999e-05,2]
[354184331,1740335431488,-649.90569423,9.999e-05,2]
[354184332,1740335431497,-500.0,9.999e-05,2]
[354184333,1740335431506,-38.00859905,9.999e-05,2]
[354184334,1740335431517,-461.99140095,9.999e-05,2]
[354184335,1740335431527,-500.0,9.999e-05,2]
[354184336,1740335431536,-500.0,9.999e-05,2]
[354184337,1740335431545,-500.0,9.999e-05,2]
[354184338,1740335431554,-500.0,9.999e-05,2]
[354184339,1740335431566,-500.0,9.999e-05,2]
[354184340,1740335431575,-500.0,9.999e-05,2]
[354184341,1740335431584,-500.0,9.999e-05,2]
[354184342,1740335431594,-500.0,9.999e-05,2]
[354184343,1740335431604,-500.0,9.999e-05,2]
[354184344,1740335431613,-500.0,9.999e-05,2]
[354184345,1740335431622,-2134.77971909,0.0001,2]
[354184346,1740335431639,-3601.45271739,0.0001,2]
[354184347,1740335431650,-5128.4343372,0.0001,2]
[354184348,1740335431673,-427.59174715,0.0001,2]
[354184349,1740335431684,-925.89444527,0.0001,2]
[354184350,1740335431710,-1202.03568748,0.0001,2]
[354184351,1740335431742,-2676.24,0.0001,2]
[354184352,1740335431753,-3402.98623049,0.0001,2]
[354184353,1740335431764,-1250.96724705,0.0001,2]
[354184355,1740335431785,-303.70844744,0.0001,2]
[354184356,1740335431796,-718.36983444,0.0001,2]
[354184357,1740335431807,-259.71141455,0.0001,2]
[354184358,1740335431819,-765.75877034,0.0001,2]
[354184359,1740335431836,-1904.33,0.0001,2]
[354184362,1740335431847,-33194.57140982,0.0001,2]
[354184393,1740335437292,-8283.79901343,0.0001,2]
[354184395,1740335437304,-1591.09602377,0.0001,2]
[354184396,1740335437350,-1291.0000006,0.0001,2]
[354184397,1740335437363,-509779.07047512,0.0001,2]
[354184398,1740335437374,-6793.80956544,0.0001,2]
[354184399,1740335437383,-23817.73146634,0.0001,2]
[354184400,1740335437396,-120152.66856628,0.0001,2]
[354184401,1740335437405,-314.06336534,0.0001,2]
[354184402,1740335437415,-164.74943923,0.000109,2]
[354184403,1740335437425,-156.632705,0.00010958,2]
[354184404,1740335437435,-168.769979,0.00010958,2]
[354184405,1740335437444,-155.40376,0.00010958,2]
[354184406,1740335437453,-163.86388,0.00010958,2]
[354184407,1740335437463,-158.347935,0.00010958,2]
[354184408,1740335437473,-169.322028,0.00010958,2]
[354184409,1740335437483,-182.973312,0.00010958,2]
[354184410,1740335437491,-155.63543,0.00010958,2]
[354184411,1740335437500,-152.693174,0.00010958,2]
[354184412,1740335437509,-241.012672,0.00010958,2]
[354184413,1740335437517,-151.833865,0.00010958,2]
[354184414,1740335437527,-744.87,0.00010959,2]
[354184415,1740335437536,-155.0,0.00010998,2]
[354184416,1740335437545,-156.632705,0.00011041,2]
[354184417,1740335437554,-3901.59251528,0.00011099,2]
[354184418,1740335437563,-3901.59251526,0.00011099,2]
[354184419,1740335437573,-158.347935,0.00011123,2]
[354184420,1740335437583,-156.632705,0.00011205,2]
[354184421,1740335437592,-156.632705,0.00011287,2]
[354184422,1740335437601,-163.86388,0.00011287,2]
[354184423,1740335437610,-3901.59251526,0.00011331,2]
[354184424,1740335437619,-156.632705,0.00011369,2]
[354184425,1740335437628,-158.347935,0.00011369,2]
[354184426,1740335437638,-223.08436473,0.000114,2]
[354184428,1740335437647,-223.08436469,0.000119,2]
[354184429,1740335437656,-1284.0,0.00012,5]
[354184430,1740335437666,-3901.59251526,0.00012046,2]
[354184431,1740335437675,-164.74943923,0.00012293,2]
[354184432,1740335437684,-156.13209969,0.000123,2]
[354184433,1740335437693,-156.1320996,0.000123,2]
[354184434,1740335437702,-156.1320996,0.000123,2]
[354184435,1740335437711,-156.1320996,0.000123,2]
[354184436,1740335437720,-156.1320996,0.000123,2]
[354184437,1740335437729,-835.87,0.00012564,2]
[354184438,1740335437737,-156.1320996,0.00012567,2]
[354184439,1740335437746,-3901.59251526,0.00012761,2]
[354184440,1740335437755,-223.08436469,0.000129,2]
[354184441,1740335437764,-300.55444405,0.00013,2]
[354184442,1740335437773,-156.1320996,0.000131,2]
[354184443,1740335437782,-3901.59251526,0.00013477,2]
[354184444,1740335437792,-453.92912298,0.000136,2]
[354184445,1740335437801,-156.1320996,0.00013633,2]
[354184446,1740335437810,-198.86,0.00013699,2]
[354184447,1740335437819,-200.0,0.00013699,2]
[354184448,1740335437828,-1439.85,0.00013699,2]
[354184449,1740335437837,-527.01,0.000137,2]
[354184450,1740335437846,-527.01,0.000137,2]
[354184451,1740335437855,-163.9,0.00013792,2]
[354184452,1740335437863,-11400.91,0.00013845,2]
[354184453,1740335437872,-1000.0,0.00013845,2]
[354184454,1740335437881,-914.0,0.00013845,2]
[354184455,1740335437891,-377.53,0.00013846,2]
[354184456,1740335437899,-500.0,0.00013894,2]
[354184457,1740335437908,-223.08436469,0.000139,2]
[354184458,1740335437917,-640.0,0.00014,2]
[354184459,1740335437927,-509.84463801,0.00014,2]
[354184460,1740335437935,-159.29,0.00014055,2]
[354184461,1740335437944,-156.1320996,0.00014167,2]
[354184462,1740335437953,-3901.59251526,0.00014192,2]
[354184463,1740335437963,-4297.52,0.0001422,2]
[354184464,1740335437972,-234.13,0.0001422,2]
[354184465,1740335437981,-159.29,0.00014336,2]
[354184466,1740335437990,-1133.18,0.00014504,2]
[354184467,1740335438000,-22986.79,0.00014504,2]
[354184468,1740335438009,-397.37,0.00014504,2]
[354184469,1740335438019,-18799.53,0.00014504,2]
[354184470,1740335438029,-19999.99,0.00014504,2]
[354184471,1740335438038,-159.29,0.00014617,2]
[354184472,1740335438048,-250.0,0.00014622,2]
[354184473,1740335438058,-156.1320996,0.000147,2]
[354184474,1740335438067,-1231.22255765,0.00014703,2]
[354184475,1740335438077,-783.24505454,0.00014728,2]
[354184476,1740335438086,-2751.0,0.00014729,2]
[354184477,1740335438097,-150.0,0.00014745,2]
[354184478,1740335438106,-150.0,0.00014745,2]
[354184479,1740335438115,-150.0,0.00014745,2]
[354184480,1740335438124,-150.0,0.00014745,2]
[354184481,1740335438134,-182210.856507,0.000148,2]
[354184482,1740335438143,-165.1905457,0.00014807,2]
[354184483,1740335438152,-835.87,0.00014828,2]
[354184484,1740335438162,-1000.0,0.00014834,2]
[354184485,1740335438171,-150.78,0.0001489,2]
[354184486,1740335438180,-159.29,0.00014898,2]
[354184487,1740335438190,-223.08436469,0.000149,2]
[354184488,1740335438199,-300.0,0.000149,5]
[354184489,1740335438208,-133422.017207,0.000149,2]
[354184490,1740335438217,-3901.59251526,0.00014907,2]
[354184491,1740335438226,-3532.0063301,0.00015,2]
[354184492,1740335438236,-297.04219269,0.00015135,2]
[354184493,1740335438245,-7848.35395338,0.00015145,2]
[354184494,1740335438254,-150.0,0.00015155,2]
[354184495,1740335438263,-150.0,0.00015155,2]
[354184496,1740335438272,-783.24505453,0.00015164,2]
[354184497,1740335438281,-159.29,0.00015179,2]
[354184498,1740335438291,-150.0,0.00015184,2]
[354184499,1740335438300,-6507.53058953,0.00015196,2]
[354184500,1740335438309,-7848.35395338,0.00015196,2]
[354184501,1740335438318,-192.85432533,0.000152,2]
[354184502,1740335438327,-156.1320996,0.00015233,2]
[354184503,1740335438337,-15696.7079068,0.0001528,2]
[354184504,1740335438346,-233.91,0.00015286,2]